Cogmind - Beta 14 @@@ ROGUE MODE // 2024.08.18 @ 11:15:05 Player: RedTheSorceress Result: Destroyed by 8R-AWN with 8R-AWN's Boregun Performance ------------- Evolutions (0) 0 Regions Visited (3) 600 Robots Destroyed (27) 135 Value Destroyed (594) 594 Prototype IDs (4) 80 Alien Tech Used (0) 0 Bonus (52) 52 TOTAL SCORE: 1461 Bonus ------- Follower Combat Kills 70 Friendly Fire -18 Cogmind --------- Core Integrity 0/250 Matter 152/300 Energy 100/100 System Corruption 2% Temperature Cool (0) Movement Treading (320) Ox2 Location -10/Exiles Parts ------- > --- POWER (1) -------- (None) > --- PROPULSION (2) --- Light Treads Light Treads > --- UTILITY (2) ------ Huge Storage Unit > --- WEAPON (2) ------- Assault Rifle Mining Claw > --- INVENTORY (25) --- Light Treads Light Treads Light Treads Light Treads Advanced Myomer Leg Compact Wheel Assault Rifle Assault Rifle Assault Rifle Assault Rifle Assault Rifle Assault Rifle Assault Rifle Assault Rifle Assault Rifle 8R-AWN's Boregun Rocket Launcher Proton Bomb Trap Peak State ------------ > --- POWER ------------ Light Nuclear Core > --- PROPULSION ------- Light Treads Light Treads > --- UTILITY ---------- Huge Storage Unit Improved Terrain Scanner > --- WEAPON ----------- Particle Gun Assault Rifle > --- INVENTORY -------- Ion Engine Light Treads Light Treads Light Treads Light Treads Light Treads Light Treads Light Treads Compact Wheel Compact Wheel Compact Wheel Structural Scanner Small Laser Small Laser Small Laser Assault Rifle Assault Rifle Assault Rifle Assault Rifle Mining Laser [Rating: 14] Favorites ----------- Power Light Nuclear Core Engine Ion Engine Power Core Light Nuclear Core Propulsion Light Treads Treads Light Treads Leg Aluminum Leg Wheel Compact Wheel Utility Huge Storage Unit Device Improved Terrain Scanner Storage Huge Storage Unit Protection Light Armor Plating Weapon Assault Rifle Energy Gun Particle Gun Ballistic Gun Assault Rifle Launcher Rocket Launcher Slashing Weapon Mining Claw Build | -11 -10 -10 -10 ------- Run | Yrd Mat Min Exi Slots Evolved . | . . . . Power . | . . . . Propulsion . | . . . . Utility . | . . . . Weapon . | . . . . Parts Attached 19 | 3 5 3 8 Power 1 | . 1 . . Engine . | . . . . Core 1 | . 1 . . Reactor . | . . . . Propulsion 7 | 2 1 . 4 Treads 6 | 2 1 . 3 Leg . | . . . . Wheel 1 | . . . 1 Hover . | . . . . Flight . | . . . . Utility 3 | 1 2 . . Device 1 | 1 . . . Storage 1 | . 1 . . Processor . | . . . . Hackware . | . . . . Protection 1 | . 1 . . Artifact . | . . . . Weapon 8 | . 1 3 4 Energy Gun 1 | . 1 . . Energy Cannon . | . . . . Ballistic Gun 4 | . . 2 2 Ballistic Cannon . | . . . . Launcher 1 | . . . 1 Special Weapon . | . . . . Impact Weapon . | . . . . Slashing Weapon 2 | . . 1 1 Piercing Weapon . | . . . . Special Melee Weapon . | . . . . Unidentified Prototypes . | . . . . Parts Lost 8 | . . . 8 Power 1 | . . . 1 Propulsion 4 | . . . 4 Utility 1 | . . . 1 Weapon 2 | . . . 2 Highest Loss Streak 7 | . . . 7 To Critical Strikes 3 | . . . 3 Average Slot Usage (%) 98 | . 100 99 91 Core 12 | . 12 14 9 Treads 27 | . 28 28 27 Device 6 | . 11 . . Storage 14 | . 14 14 14 Protection 7 | . 2 14 10 Energy Gun 9 | . 14 5 . Ballistic Gun 16 | . 14 21 15 Slashing Weapon 1 | . . 1 12 Peak Build Rating 14 | 9 14 12 12 Average Rating 11 | 6 12 11 9 On Entrance 9 | 6 9 12 11 Naked Turns . | . . . . Heaviest Build 93 | 14 93 93 92 Greatest Support 40 | 40 40 40 40 Greatest Overweight (x) 5 | . 2 2 5 Average Overweight (x) 1 | . 1 2 2 Largest Inventory Capacity 25 | 8 25 25 25 Average Capacity 23 | 8 22 25 25 Most Carried 25 | 8 25 25 25 Average Carried 22 | 6 20 24 22 Final Capacity 25 | 8 25 25 25 Final Carried 25 | 8 25 25 18 Class Distribution -------------------- 72% | Mutant 27% | Scavenger-Mutant Dominant Class ---------------- Scavenger-Mutant | -10/Materials Mutant | -10/Mines Mutant | -10/Exiles Resources | -11 -10 -10 -10 ----------- Run | Yrd Mat Min Exi Matter Collected 580 | 251 250 79 . Remotely . | . . . . Salvage Created 985 | 141 676 151 17 Parts 58 | 9 45 4 . Haulers Intercepted 2 | . 2 . . Recyclers Shooed 2 | . 1 1 . Parts Field Recycled . | . . . . Retrieved Matter . | . . . . Parts Self-Destructed . | . . . . Prevented . | . . . . Kills | -11 -10 -10 -10 ------- Run | Yrd Mat Min Exi Combat Hostiles Destroyed 20 | . 12 2 6 Guns 14 | . 12 2 . AOE 6 | . . . 6 Classes Destroyed 10 | 2 7 . 1 Worker 1 | . 1 . . Builder 1 | . 1 . . Tunneler 3 | 3 . . . Hauler 2 | . 2 . . Recycler 2 | 1 . 1 . Operator 1 | . 1 . . Watcher 3 | . 3 . . Swarmer 2 | . 2 . . Grunt 12 | . 10 2 . Assembled 6 | . . . 6 Best Kill Streak 6 | 2 3 2 6 Combat Bots Only 6 | . 3 1 6 Max Kills in Single Turn 3 | 1 2 1 3 Gunslinging . | . . . . Exploded 3 | . . . 3 Melee . | . . . . Uniques/NPCs Destroyed . | . . . . Combat | -11 -10 -10 -10 -------- Run | Yrd Mat Min Exi Hostile Shots Fired 137 | . 50 12 75 Missed 32 | . 10 3 19 Damage Taken 1587 | . 518 112 957 Core 257 | . 80 26 151 Absorbed by Shields . | . . . . Core Remaining (%) 100 | 100 . . . Volleys Fired 77 | 7 47 11 12 Largest 2 | 2 2 2 2 Hottest 85 | 60 85 85 40 Shots Fired 150 | 14 93 23 20 Gun 146 | 14 93 23 16 Cannon . | . . . . Launcher 4 | . . . 4 Special . | . . . . Kinetic 84 | 7 47 14 16 Thermal 62 | 7 46 9 . Explosive 4 | . . . 4 Electromagnetic . | . . . . Robot Hit Streak 11 | 11 11 7 5 Robot Miss Streak 3 | . 3 2 2 Penetration Max . | . . . . Secondary Targets 1 | . . 1 . Max Gunslinging Chain 1 | . . 1 . Shots Hit Robots 129 | 11 68 15 35 Core Hits 61 | 5 34 5 17 Critical Kills . | . . . . Critical Parts Destroyed 1 | . 1 . . Critical Strikes 4 | . 3 1 . Burn 3 | . 2 1 . Destroy 1 | . 1 . . Melee Attacks 39 | . . 8 31 Impact . | . . . . Slashing 39 | . . 8 31 Piercing . | . . . . Sneak Attacks . | . . . . Combat Hostiles . | . . . . Follow-up Attacks . | . . . . Damage Inflicted 2348 | 122 974 253 999 Guns 1490 | 122 971 236 161 Cannons . | . . . . Explosions 360 | . . . 360 Melee 478 | . . . 478 Ramming 20 | . 3 17 . Kinetic 744 | 69 403 111 161 Thermal 746 | 53 568 125 . Explosive 360 | . . . 360 Electromagnetic . | . . . . Impact . | . . . . Slashing 478 | . . . 478 Piercing . | . . . . Highest Corruption 2 | . 2 2 2 Average Corruption 2 | . 2 2 2 Corruption Purged . | . . . . Corruption Blocked . | . . . . Effects 45 | . 27 15 3 Message Errors 14 | . 7 6 1 Matter Fused 12 | . 9 3 . Heat Flow Errors 4 | . 2 . 2 Energy Discharges 4 | . 3 1 . Data Loss (minor) 6 | . 5 1 . Misfires 2 | . . 2 . Alerts 2 | . 1 1 . Weapon Failures 1 | . . 1 . Overload Shots . | . . . . Overflow Damage 6 | . . . 6 Projectiles . | . . . . Explosions . | . . . . Melee 6 | . . . 6 Knockbacks 1 | . . 1 . Impact 1 | . . 1 . Kinetic . | . . . . Secondary . | . . . . Self-Inflicted Damage 49 | . 49 . . Shots 2 | . 2 . . Rammed 3 | . 1 2 . Targets Rammed 3 | . 1 2 . Kicked . | . . . . Crushed . | . . . . Highest Temperature 252 | . 252 218 150 Average Temperature 67 | . 64 76 74 Received Heat Transfer 303 | . 237 66 . Siege Activations . | . . . . Robots Corrupted . | . . . . Combat Hostiles . | . . . . Parts Fried . | . . . . Impact Corruptions . | . . . . Robots Melted . | . . . . Combat Hostiles . | . . . . Parts Melted 1 | . 1 . . Heat Transferred 1942 | 125 1447 370 . Parts Sabotaged . | . . . . Parts Stolen . | . . . . Parts Stripped . | . . . . Power Chain Reactions . | . . . . Alert | -11 -10 -10 -10 ------- Run | Yrd Mat Min Exi Peak Influence 269 | 20 269 107 . Initial 46 | . 13 46 . Average 55 | 11 74 28 . Maximum Alert Level 1 | . 1 . . Low Security (%) 92 | 100 87 100 . Level 1 7 | . 12 . . Level 2 . | . . . . Level 3 . | . . . . Level 4 . | . . . . Level 5 . | . . . . High Security . | . . . . Max Security . | . . . . Squads Dispatched 2 | . 2 . . Investigation 1 | . 1 . . Extermination . | . . . . Reinforcement 1 | . 1 . . Assault . | . . . . Garrison . | . . . . Intercept . | . . . . Searches Triggered . | . . . . Construction Impeded . | . . . . Haulers Reinforced . | . . . . Active Scanning Responses . | . . . . Cargo Convoy Interrupts . | . . . . Stealth | -11 -10 -10 -10 --------- Run | Yrd Mat Min Exi Distress Signals 2 | . 1 1 . Communications Jammed . | . . . . Distress Signals . | . . . . Times Spotted 36 | . 26 4 6 Peak Tracking Total 9 | . 5 2 9 Tactical Retreats 3 | . 3 . . Traps | -11 -10 -10 -10 ------- Run | Yrd Mat Min Exi Traps Triggered 1 | . 1 . . Indirectly . | . . . . Trap Hack Attempts . | . . . . Triggered . | . . . . Disarmed . | . . . . Reprogrammed . | . . . . Reused 1 | . . . 1 Traps Extracted . | . . . . Installed 2 | . . . 2 Triggered . | . . . . Most Traps Carried 3 | . . 3 3 Machines | -11 -10 -10 -10 ---------- Run | Yrd Mat Min Exi Machines Disabled 4 | . 2 . 2 Max in Single Turn 2 | . 2 . 2 Machines Repaired . | . . . . Machines Dismantled . | . . . . Machines Sabotaged . | . . . . Overloaded Fab Kills . | . . . . Hacking | -11 -10 -10 -10 --------- Run | Yrd Mat Min Exi Machines Accessed 6 | . 6 . . Terminals 5 | . 5 . . Fabricators . | . . . . Repair Stations . | . . . . Recycling Units 1 | . 1 . . Scanalyzers . | . . . . Garrison Access . | . . . . Total Hacks 21 | . 21 . . Successful 12 | . 12 . . Failed 8 | . 8 . . Catastrophic . | . . . . Database Lockouts 1 | . 1 . . Manual 9 | . 9 . . Terminals 18 | . 18 . . Fabricators . | . . . . Repair Stations . | . . . . Recycling Units 3 | . 3 . . Scanalyzers . | . . . . Garrison Access . | . . . . Terminal Hacks 9 | . 9 . . Robot Analysis 4 | . 4 . . Prototype ID Bank 2 | . 2 . . Locate Traps 2 | . 2 . . Hauler Manifests 1 | . 1 . . Fabricator Hacks . | . . . . Repair Station Hacks . | . . . . Recycling Unit Hacks . | . . . . Scanalyzer . | . . . . Garrison Access Hacks . | . . . . Unauthorized Hacks 3 | . 3 . . Terminals 3 | . 3 . . Track 1 | . 1 . . Botnet 1 | . 1 . . Operators 1 | . 1 . . Fabricators . | . . . . Repair Stations . | . . . . Recycling Units . | . . . . Scanalyzers . | . . . . Garrison Access . | . . . . Data Cores Recovered . | . . . . Used . | . . . . Hacking Detections 6 | . 6 . . Full Trace Events . | . . . . Feedback Events . | . . . . Feedback Blocked . | . . . . Robot Schematics Acquired . | . . . . Robots Built . | . . . . Authchips . | . . . . Time . | . . . . Total Robot Build Rating . | . . . . Part Schematics Acquired . | . . . . Parts Built . | . . . . Authchips . | . . . . Time . | . . . . Total Part Build Rating . | . . . . Parts Repaired . | . . . . Time . | . . . . Parts Recycled . | . . . . Recycled Matter . | . . . . Retrieved Matter . | . . . . Retrieved Components . | . . . . Parts Scanalyzed . | . . . . Part Schematics Acquired . | . . . . Parts Damaged . | . . . . Bothacking | -11 -10 -10 -10 ------------ Run | Yrd Mat Min Exi Used RIF Installer . | . . . . Robots Hacked . | . . . . Non-combat . | . . . . Combat . | . . . . Robot Hacks Applied . | . . . . Relay Couplers Released . | . . . . Fabnet Peak Effective % . | . . . . Robots Rewired . | . . . . Allies Hacked . | . . . . Hacks Repelled . | . . . . Allies | -11 -10 -10 -10 -------- Run | Yrd Mat Min Exi Total Allies 5 | . . 5 . Largest Group 5 | . . 5 4 Highest-Rated Group 95 | . . 95 71 Highest-Rated Ally 31 | . . 31 31 Total Orders . | . . . . Ally Attacks 31 | . . 16 15 Total Damage 351 | . . 313 38 Kills 2 | . . 2 . Allies Corrupted . | . . . . Allies Melted . | . . . . Intel | -11 -10 -10 -10 ------- Run | Yrd Mat Min Exi Robot Analysis Total 4 | . 4 . . Derelict Logs Recovered 1 | . . 1 . Drone Launches . | . . . . Drone Recoveries . | . . . . Exploration | -11 -10 -10 -10 ------------- Run | Yrd Mat Min Exi Turns Passed 3497 | 80 1839 1176 402 Spaces Moved 977 | 22 532 342 81 Core . | . . . . Treads 975 | 22 532 342 79 Legs . | . . . . Wheels 2 | . . . 2 Hover . | . . . . Flight . | . . . . Fastest Speed 160 | 160 160 320 175 Average Speed 304 | 160 298 320 316 Slowest Speed 320 | 160 320 320 320 Overloaded Moves . | . . . . Propulsion Burnouts . | . . . . Robots Hopped . | . . . . Cave-ins Triggered . | . . . . Exploration Rate (%) 44 | 2 92 69 13 Regions Visited 3 Branch Regions 2 Pre-discovered Areas 1 | . . 1 . Known Exits Taken . | . . . . Unknown Exits Taken 3 | 1 1 1 . Scrap Searched 1 | . . 1 . Spaces Dug . | . . . . Terrain Destroyed 30 | . . . 30 Melee . | . . . . Projectile . | . . . . AOE 30 | . . . 30 Terrain Rammed . | . . . . Walls Destroyed . | . . . . Machines Disabled . | . . . . Actions | -11 -10 -10 -10 --------- Run | Yrd Mat Min Exi Total 1285 | 53 698 385 149 Wait 107 | 16 81 10 . Move 974 | 21 531 341 81 Hop . | . . . . Pick Up 37 | 4 22 5 6 Fast Attach 3 | 1 2 . . Attach 10 | 2 . 2 6 Detach 1 | . 1 . . Swap 6 | . 3 1 2 Drop 26 | 2 10 5 9 Fire 77 | 7 47 11 12 Melee 39 | . . 8 31 Ram . | . . . . Kick . | . . . . Crush 3 | . 1 2 . Escape Stasis . | . . . . Rewire . | . . . . Trap 2 | . . . 2 Miscellaneous . | . . . . Route ------- -11/Scrapyard -10/Materials (discovered 5 exits: [*Mat x3] / [*Min x2]) -10/Mines -10/Exiles (discovered 1 exit: [*Min]) History --------- Turn | Location | Event 10 | -11/Scrapyard | Discovered new exit (range 2) 81 | -11/Scrapyard | Entered Materials 303 | -10/Materials | Build established: Mutant 488 | -10/Materials | Discovered new exit (range 13) 520 | -10/Materials | Discovered new exit (range 14) 622 | -10/Materials | Central database locked down 982 | -10/Materials | Build established: Scavenger-Mutant 1016 | -10/Materials | Discovered new exit (range 11) 1778 | -10/Materials | Discovered new exit (range 8) 1807 | -10/Materials | Discovered new exit (range 16) 1913 | -10/Materials | Build established: Mutant 1920 | -10/Materials | Entered Mines 2239 | -10/Mines | Received a Rocket Launcher from a helpful Derelict 2360 | -10/Mines | Found a hidden stash of uninstalled traps 2439 | -10/Mines | Assisted by bots powering up and referring to "LRC-V3" 2890 | -10/Mines | Learned location of Mines (-9) 2973 | -10/Mines | Excavation squad dispatched 2973 | -10/Mines | A large section of the Mines collapsed 3024 | -10/Mines | Deemed a non-threat by the Exiles lab entrance 3024 | -10/Mines | Discovered new exit (range 5) 3096 | -10/Mines | Entered Exiles 3096 | -10/Exiles | Accompanied by 4 allies 3126 | -10/Exiles | Led the pair of lost Derelicts to a safe place 3144 | -10/Exiles | Discovered new exit (range 15) 3327 | -10/Exiles | Met 8R-AWN 3351 | -10/Exiles | Warned about trapping Exiles lab 3355 | -10/Exiles | Attacked by the Exiles 3397 | -10/Exiles | Lost 3 allies 3408 | -10/Exiles | Core integrity fell below 50% 3453 | -10/Exiles | Core integrity fell below 20% 3456 | -10/Exiles | Lost 7 parts (1p3n1u2w) 3498 | -10/Exiles | Destroyed by 8R-AWN with 8R-AWN's Boregun Last Messages --------------- 03429_ The unstable cave ceiling collapses. 03429_ HV Slug penetrates Earth. 03429_ Penetrated by HV Slug. 03434_ HV Slug penetrates Earth. 03434_ Penetrated by HV Slug. 03441_ 8R-AWN Prototype Ballistic Gun ripped off. 03442_ Penetrated by HV Slug. 03452_ System corrupted: Heat flow error (+113). 03452_ Penetrated by HV Slug. 03465_ Destroyed Prototype Device. 03466_ Penetrated by HV Slug. 03468_ Destroyed Prototype Protection. 03470_ Penetrated by HV Slug. 03480_ HV Slug penetrates Wall. 03480_ 8R-AWN Prototype Leg ripped off. 03484_ Penetrated by HV Slug. 03487_ Critical hit (Destroy). 03487_ Lgt. Treads destroyed. 03491_ Penetrated by HV Slug. Map ----- +----------------------------------------------------+ | ?????????????????????????????????????????????????? | | ?????????????????????????????????????????????????? | | ?????????????????????????????????????????????????? | | ?????????????????????????????????????????????????? | | ?????????????????????????????????????????????????? | | ?????????????????????????????????????????????????? | | ?????????????????????????????????????????????????? | | ?????????????????????????????????????????????????? | | ?????????????????????????????????????????????????? | | ?????????????????????????????????????????????????? | | ?????????????????????????????????????????????????? | | ?????????????????????????????????????????????????? | | ?????????????????????????????????????????????????? | | ?????????????????????????????????????????????????? | | ???????????????????????????????????????????????### | | ??????????????????????????????????????????????## | | ?????????????????????????????????????????????## | | ?????????????????????????????????????????????# < | | ?????????????????????????????????????????????# | | ?????????????????????????????????????????????# | | ????????????????????????????????????????????## # | | ???????????????????????????????????????????## # | | ???????????????????????????????????????????# ! | | ???????????????????????#####???????????????# | | ??????????????????????## g##?????????????## | | ?????????????????###### @% #????????????## # | | ?????????????????# ;; % ##???????????# ## | | ?????????????????####; ^ ;##????????### ##? | | ?????????????????? ; %% ########## #?? | | ????????????????# ;; ! #""""## ##?? | | ?????????????? ;;# ##?? | | ??????????? ## #?? | | ?????????? ### ##? | | ????????? ###"""""##;# ## | | ???????????? #########?##### | | ???????????? # ##?????????????##### | | ??????????? # ???????????????????### * | | ??????????? ## #?????????????????????###** | | ??????????? % # # #????????????????????????### | | ????????????? # ?????????????????????????????#" | | ??????????????? ?????????????????????????????#### | | ?????????????????????????????????????????????????# | | ?????????????????????????????????????????????????# | | ?????????????????????????????????????????????????? | | ?????????????????????????????????????????????????? | | ?????????????????????????????????????????????????? | | ?????????????????????????????????????????????????? | | ?????????????????????????????????????????????????? | | ?????????????????????????????????????????????????? | | ?????????????????????????????????????????????????? | +----------------------------------------------------+ Best States ------------- Heat Dissipation 25 Energy Generation 14 Energy Capacity 250 Matter Stores 300 Matter Capacity 300 Sight Range 16 Terrain Scan Range 16 Terrain Scan Density 10 Armor Coverage 150 Evasion (%) 40 Recoil Reduction 2 Item Schematics ----------------- None Robot Schematics ------------------ None Fabricated ------------ Nothing Alien Tech Used ----------------- None Achievements -------------- None Challenges ------------ None Game ------ Seed WeaponSuperchargedShovel Manual? 0 Play Time 00:21:35 Cumulative 805.9 hours Start 2024.08.18 @ 10:57:14 End 2024.08.18 @ 11:15:05 Sessions 1 Manual Loads 0 Difficulty Rogue Special Mode None Game No. 533 Rogue 533 Adventurer 0 Explorer 0 Win Type - Total 115 Types 79/7/8/10/5/1/4/0/1 Lore% 72 Gallery% 81 Achievement% 82 Wizard Run 0 Options --------- Layout 1 ASCII 0 Keyboard 0 Movement Numpad Keybinds 0 Fullscreen 1 Font 24/Terminus Map View 50x35 Zoom Use 0% Tactical HUD 1 Map Filters NONE Filters NONE Steam 1 RUN: 4f5489a4-517f-4dc4-9b70-53fad7815e32